[Event "Late-Titled-Tuesday-Blitz-January-16-2024"]
[Site "Chess.com"]
[Date "2024.01.16"]
[Round "1"]
[White "Polish_fighter3000"]
[Black "Sjakkerntobi"]
[Result "1-0"]
[WhiteElo "3095"]
[BlackElo "2523"]
[TimeControl "180+1"]
[EndTime "14:07:23 PST"]
[Termination "Polish_fighter3000 won by resignation"]

1. e4 {[%clk 0:03:00.9]} 1... e6 {[%clk 0:03:00.3]} 2. Nf3 {[%clk 0:03:00.3]}
2... d5 {[%clk 0:03:00.9]} 3. Nc3 {[%clk 0:03:00.4]} 3... d4 {[%clk 0:03:01.2]}
4. Ne2 {[%clk 0:03:00.3]} 4... c5 {[%clk 0:03:02.1]} 5. g3 {[%clk 0:03:00.4]}
5... Nc6 {[%clk 0:03:00.3]} 6. d3 {[%clk 0:03:00.7]} 6... Nf6 {[%clk 0:02:58.3]}
7. Bg2 {[%clk 0:03:01.2]} 7... Be7 {[%clk 0:02:54.8]} 8. O-O {[%clk 0:03:01]}
8... h5 {[%clk 0:02:51.4]} 9. a4 {[%clk 0:02:58.6]} 9... a6 {[%clk 0:02:50.8]}
10. Bd2 {[%clk 0:02:53.3]} 10... e5 {[%clk 0:02:41.9]} 11. a5 {[%clk 0:02:51.9]}
11... Nh7 {[%clk 0:02:27.5]} 12. h4 {[%clk 0:02:29.7]} 12... g5 {[%clk 0:02:18]}
13. hxg5 {[%clk 0:02:27.6]} 13... Nxg5 {[%clk 0:02:18.9]} 14. Nxg5 {[%clk
0:02:26.7]} 14... Bxg5 {[%clk 0:02:19.8]} 15. f4 {[%clk 0:02:27]} 15... Bh6
{[%clk 0:02:18.9]} 16. f5 {[%clk 0:02:19.6]} 16... Bxd2 {[%clk 0:01:52.8]} 17.
Qxd2 {[%clk 0:02:20.5]} 17... h4 {[%clk 0:01:53.7]} 18. g4 {[%clk 0:02:17.7]}
18... h3 {[%clk 0:01:53.5]} 19. Bf3 {[%clk 0:02:17.8]} 19... h2+ {[%clk
0:01:53.7]} 20. Kh1 {[%clk 0:02:17.8]} 20... Qh4 {[%clk 0:01:46.7]} 21. Nc1
{[%clk 0:02:04.9]} 21... Bd7 {[%clk 0:01:44]} 22. Nb3 {[%clk 0:02:04.5]} 22...
Qe7 {[%clk 0:01:36.3]} 23. Rf2 {[%clk 0:02:03.4]} 23... O-O-O {[%clk 0:01:34.4]}
24. Rxh2 {[%clk 0:02:01.6]} 24... Rxh2+ {[%clk 0:01:11.6]} 25. Qxh2 {[%clk
0:02:02.5]} 25... Qf6 {[%clk 0:01:12.3]} 26. Kg2 {[%clk 0:01:59.5]} 26... Rh8
{[%clk 0:01:04.9]} 27. Qg3 {[%clk 0:01:59.8]} 27... Qg5 {[%clk 0:01:05]} 28. Rh1
{[%clk 0:01:38.5]} 28... Rxh1 {[%clk 0:01:03.8]} 29. Kxh1 {[%clk 0:01:39.4]}
29... Nb4 {[%clk 0:01:04.4]} 30. Qxe5 {[%clk 0:01:33.9]} 30... Qe3 {[%clk
0:00:48.5]} 31. Qxc5+ {[%clk 0:01:30]} 31... Nc6 {[%clk 0:00:48.6]} 32. Kg2
{[%clk 0:01:29.8]} 32... Kb8 {[%clk 0:00:41.6]} 33. Qd6+ {[%clk 0:01:27.6]}
33... Kc8 {[%clk 0:00:40.9]} 34. Qg3 {[%clk 0:01:16.9]} 34... Nb4 {[%clk
0:00:36.9]} 35. Qf2 {[%clk 0:01:16.3]} 35... Qxf2+ {[%clk 0:00:26.1]} 36. Kxf2
{[%clk 0:01:17.2]} 36... Nxc2 {[%clk 0:00:27]} 37. e5 {[%clk 0:01:16.2]} 37...
Nb4 {[%clk 0:00:25.6]} 38. Be4 {[%clk 0:01:15.3]} 38... Bc6 {[%clk 0:00:16.4]}
39. Nxd4 {[%clk 0:01:04.6]} 39... Bxe4 {[%clk 0:00:16]} 40. dxe4 {[%clk
0:01:05.5]} 40... Nd3+ {[%clk 0:00:16.6]} 41. Kg3 {[%clk 0:01:05.8]} 41... Nxe5
{[%clk 0:00:17.5]} 42. g5 {[%clk 0:00:55.8]} 42... Kd8 {[%clk 0:00:17.9]} 43. b3
{[%clk 0:00:53.7]} 43... Ke7 {[%clk 0:00:17.5]} 44. Kf4 {[%clk 0:00:54.4]} 44...
Nd7 {[%clk 0:00:17.7]} 45. b4 {[%clk 0:00:54]} 45... f6 {[%clk 0:00:15.9]} 46.
gxf6+ {[%clk 0:00:52.8]} 46... Kxf6 {[%clk 0:00:16.8]} 47. Nf3 {[%clk 0:00:53]}
47... Nb8 {[%clk 0:00:16]} 48. Ne5 {[%clk 0:00:51.3]} 48... Ke7 {[%clk
0:00:14.7]} 49. Kg5 {[%clk 0:00:51.6]} 49... Kd6 {[%clk 0:00:15.4]} 50. Kf6
{[%clk 0:00:51.3]} 50... b5 {[%clk 0:00:13.2]} 51. axb6 {[%clk 0:00:50.1]} 51...
a5 {[%clk 0:00:13.3]} 52. bxa5 {[%clk 0:00:50.3]} 52... Na6 {[%clk 0:00:14.1]}
53. Ng6 {[%clk 0:00:49.8]} 53... Nc5 {[%clk 0:00:13.9]} 54. e5+ {[%clk
0:00:49.9]} 54... Kc6 {[%clk 0:00:14.6]} 55. e6 {[%clk 0:00:50.3]} 55... Ne4+
{[%clk 0:00:14.6]} 56. Ke5 {[%clk 0:00:50.5]} 56... Nc5 {[%clk 0:00:13.6]} 57.
Ne7+ {[%clk 0:00:49.6]} 57... Kb7 {[%clk 0:00:13.5]} 58. Nd5 {[%clk 0:00:50.1]}
58... Ka6 {[%clk 0:00:13.1]} 59. f6 {[%clk 0:00:50.2]} 59... Kxa5 {[%clk
0:00:13.2]} 60. f7 {[%clk 0:00:50.8]} 60... Nd3+ {[%clk 0:00:13.3]} 61. Kd6
{[%clk 0:00:50.9]} 1-0

[Event "Late-Titled-Tuesday-Blitz-January-16-2024"]
[Site "Chess.com"]
[Date "2024.01.16"]
[Round "1"]
[White "MasterofMasters2006"]
[Black "Squirlolz"]
[Result "1-0"]
[WhiteElo "2250"]
[BlackElo "2569"]
[TimeControl "180+1"]
[EndTime "14:07:23 PST"]
[Termination "MasterofMasters2006 won on time"]

1. d4 {[%clk 0:03:00.9]} 1... Nf6 {[%clk 0:02:56.3]} 2. c4 {[%clk 0:03:00.6]}
2... c5 {[%clk 0:02:56.7]} 3. d5 {[%clk 0:03:00.5]} 3... e6 {[%clk 0:02:57.2]}
4. Nc3 {[%clk 0:02:59.9]} 4... exd5 {[%clk 0:02:58.1]} 5. cxd5 {[%clk
0:03:00.5]} 5... d6 {[%clk 0:02:59]} 6. Nf3 {[%clk 0:02:59.9]} 6... g6 {[%clk
0:02:59.3]} 7. Bf4 {[%clk 0:03:00.2]} 7... Bg7 {[%clk 0:02:54.2]} 8. e3 {[%clk
0:03:00.2]} 8... O-O {[%clk 0:02:54.2]} 9. h3 {[%clk 0:02:57.4]} 9... Na6 {[%clk
0:02:53.6]} 10. Be2 {[%clk 0:02:52.5]} 10... Rb8 {[%clk 0:02:53.9]} 11. O-O
{[%clk 0:02:51.5]} 11... Re8 {[%clk 0:02:54.5]} 12. Nd2 {[%clk 0:02:44.1]} 12...
Nc7 {[%clk 0:02:29.3]} 13. Nc4 {[%clk 0:02:26.5]} 13... Bf8 {[%clk 0:02:29.6]}
14. a4 {[%clk 0:02:25.4]} 14... a6 {[%clk 0:02:28.3]} 15. Nb6 {[%clk 0:02:22.5]}
15... Bf5 {[%clk 0:02:21.1]} 16. Qb3 {[%clk 0:02:18.3]} 16... Ne4 {[%clk
0:02:18.6]} 17. Bd3 {[%clk 0:02:05.6]} 17... Nd2 {[%clk 0:02:08.2]} 18. Qc2
{[%clk 0:02:06]} 18... Bxd3 {[%clk 0:02:08.4]} 19. Qxd3 {[%clk 0:02:04.5]} 19...
Nxf1 {[%clk 0:02:08.6]} 20. Qxf1 {[%clk 0:02:04.6]} 20... Bg7 {[%clk 0:01:05.9]}
21. a5 {[%clk 0:01:56.2]} 21... Be5 {[%clk 0:01:02]} 22. Bxe5 {[%clk 0:01:48.8]}
22... Rxe5 {[%clk 0:01:01.7]} 23. Qc4 {[%clk 0:01:49.2]} 23... Qe8 {[%clk
0:00:57.6]} 24. Rd1 {[%clk 0:01:40]} 24... Nb5 {[%clk 0:00:57.3]} 25. Ne2 {[%clk
0:01:28.5]} 25... Re4 {[%clk 0:00:51.3]} 26. Qc2 {[%clk 0:01:26]} 26... Qe7
{[%clk 0:00:48]} 27. Ng3 {[%clk 0:01:24.2]} 27... Rb4 {[%clk 0:00:47.2]} 28. Nc4
{[%clk 0:01:15.1]} 28... Re8 {[%clk 0:00:45.5]} 29. h4 {[%clk 0:01:12]} 29...
Qxh4 {[%clk 0:00:43.7]} 30. b3 {[%clk 0:01:12.4]} 30... h5 {[%clk 0:00:41.4]}
31. Rd3 {[%clk 0:01:02.6]} 31... Qg5 {[%clk 0:00:33.6]} 32. Nf1 {[%clk
0:00:56.3]} 32... h4 {[%clk 0:00:25.5]} 33. Qe2 {[%clk 0:00:53.5]} 33... Qf6
{[%clk 0:00:22.4]} 34. Nfd2 {[%clk 0:00:45.9]} 34... Nc7 {[%clk 0:00:21]} 35.
Qg4 {[%clk 0:00:44]} 35... Qf5 {[%clk 0:00:19.6]} 36. Qe2 {[%clk 0:00:37.2]}
36... Rd8 {[%clk 0:00:18.2]} 37. e4 {[%clk 0:00:34.9]} 37... Qf6 {[%clk
0:00:18.7]} 38. Qg4 {[%clk 0:00:31]} 38... Nb5 {[%clk 0:00:16]} 39. Rf3 {[%clk
0:00:27.1]} 39... Qa1+ {[%clk 0:00:15.3]} 40. Kh2 {[%clk 0:00:26.8]} 40... Nd4
{[%clk 0:00:15.9]} 41. Rh3 {[%clk 0:00:23.2]} 41... Qa2 {[%clk 0:00:11.1]} 42.
Qxh4 {[%clk 0:00:22.5]} 1-0

[Event "Late-Titled-Tuesday-Blitz-January-16-2024"]
[Site "Chess.com"]
[Date "2024.01.16"]
[Round "1"]
[White "Durarbayli"]
[Black "Machteldvf"]
[Result "1-0"]
[WhiteElo "2861"]
[BlackElo "2463"]
[TimeControl "180+1"]
[EndTime "14:07:28 PST"]
[Termination "Durarbayli won by resignation"]

1. c4 {[%clk 0:03:00.9]} 1... Nf6 {[%clk 0:02:55.2]} 2. Nc3 {[%clk 0:03:00.3]}
2... e5 {[%clk 0:02:52.7]} 3. g3 {[%clk 0:02:59.5]} 3... Nc6 {[%clk 0:02:51.8]}
4. Bg2 {[%clk 0:02:59.5]} 4... Be7 {[%clk 0:02:52]} 5. e3 {[%clk 0:02:56]} 5...
O-O {[%clk 0:02:51.8]} 6. Nge2 {[%clk 0:02:56.2]} 6... d6 {[%clk 0:02:51.8]} 7.
O-O {[%clk 0:02:56.3]} 7... Be6 {[%clk 0:02:52.1]} 8. Nd5 {[%clk 0:02:55]} 8...
Bxd5 {[%clk 0:02:39.2]} 9. cxd5 {[%clk 0:02:53.3]} 9... Nb4 {[%clk 0:02:39.8]}
10. Qb3 {[%clk 0:02:50.4]} 10... a5 {[%clk 0:02:23.4]} 11. a3 {[%clk 0:02:48.5]}
11... Na6 {[%clk 0:02:24]} 12. Qxb7 {[%clk 0:02:25.9]} 12... Nc5 {[%clk
0:02:22.2]} 13. Qb5 {[%clk 0:02:25.3]} 13... Rb8 {[%clk 0:02:17.1]} 14. Qc4
{[%clk 0:02:24.5]} 14... Nb3 {[%clk 0:02:11.5]} 15. Rb1 {[%clk 0:02:22.6]} 15...
Qd7 {[%clk 0:02:10.2]} 16. d4 {[%clk 0:02:05.4]} 16... Qf5 {[%clk 0:02:02.7]}
17. Nc3 {[%clk 0:01:40.7]} 17... exd4 {[%clk 0:01:29.6]} 18. exd4 {[%clk
0:01:34.4]} 18... Nxc1 {[%clk 0:01:29]} 19. Rfxc1 {[%clk 0:01:28]} 19... Ng4
{[%clk 0:01:29.3]} 20. Qe2 {[%clk 0:01:17.1]} 20... Bg5 {[%clk 0:01:25.6]} 21.
Be4 {[%clk 0:01:03.4]} 21... Qxf2+ {[%clk 0:01:07.3]} 22. Qxf2 {[%clk
0:01:03.4]} 22... Nxf2 {[%clk 0:01:08.2]} 23. Kxf2 {[%clk 0:01:01.8]} 23... Bxc1
{[%clk 0:01:08.4]} 24. Rxc1 {[%clk 0:01:02.5]} 24... Rxb2+ {[%clk 0:01:09.1]}
25. Ne2 {[%clk 0:00:59.9]} 25... Re8 {[%clk 0:01:09.1]} 26. Rxc7 {[%clk
0:00:44.2]} 26... Rxe2+ {[%clk 0:00:59.2]} 27. Kxe2 {[%clk 0:00:45.1]} 27...
Rxe4+ {[%clk 0:00:48.2]} 28. Kd3 {[%clk 0:00:44.7]} 28... f5 {[%clk 0:00:49.1]}
29. Rd7 {[%clk 0:00:36.2]} 29... Re1 {[%clk 0:00:47.7]} 30. Rxd6 {[%clk
0:00:36.5]} 30... Ra1 {[%clk 0:00:47.2]} 31. Ra6 {[%clk 0:00:34.8]} 31... Rxa3+
{[%clk 0:00:47.2]} 32. Kc4 {[%clk 0:00:35.5]} 32... Ra2 {[%clk 0:00:47.5]} 33.
d6 {[%clk 0:00:35.8]} 33... Kf7 {[%clk 0:00:47.3]} 34. Kd5 {[%clk 0:00:35.3]}
34... Ke8 {[%clk 0:00:42.6]} 35. Ra8+ {[%clk 0:00:30.2]} 35... Kd7 {[%clk
0:00:42.6]} 36. Ra7+ {[%clk 0:00:30.4]} 36... Kd8 {[%clk 0:00:42]} 37. h4 {[%clk
0:00:19.8]} 37... Rg2 {[%clk 0:00:37.6]} 38. Rxg7 {[%clk 0:00:20]} 38... f4
{[%clk 0:00:36.5]} 39. Rxh7 {[%clk 0:00:09.5]} 39... fxg3 {[%clk 0:00:36]} 40.
d7 {[%clk 0:00:09.4]} 40... Rd2 {[%clk 0:00:34.2]} 41. Kc6 {[%clk 0:00:05.4]}
41... Rxd4 {[%clk 0:00:33.2]} 42. Rh8+ {[%clk 0:00:04.9]} 42... Ke7 {[%clk
0:00:33.7]} 43. Re8+ {[%clk 0:00:05.1]} 43... Kf6 {[%clk 0:00:22.2]} 44. d8=Q+
{[%clk 0:00:06]} 44... Rxd8 {[%clk 0:00:22.6]} 45. Rxd8 {[%clk 0:00:06.9]} 45...
Kf5 {[%clk 0:00:23.1]} 46. Rg8 {[%clk 0:00:04.6]} 1-0

[Event "Late-Titled-Tuesday-Blitz-January-16-2024"]
[Site "Chess.com"]
[Date "2024.01.16"]
[Round "1"]
[White "cthulhuuu"]
[Black "Lennis93"]
[Result "1-0"]
[WhiteElo "2435"]
[BlackElo "2734"]
[TimeControl "180+1"]
[EndTime "14:07:29 PST"]
[Termination "cthulhuuu won by checkmate"]

1. e4 {[%clk 0:02:59.8]} 1... c5 {[%clk 0:02:55.1]} 2. Nf3 {[%clk 0:03:00]} 2...
Nc6 {[%clk 0:02:55.1]} 3. g3 {[%clk 0:03:00.2]} 3... g6 {[%clk 0:02:53.9]} 4.
Bg2 {[%clk 0:03:00.7]} 4... Bg7 {[%clk 0:02:54.3]} 5. O-O {[%clk 0:03:01.4]}
5... e6 {[%clk 0:02:54.7]} 6. d3 {[%clk 0:03:01.8]} 6... Nge7 {[%clk 0:02:54.2]}
7. Re1 {[%clk 0:03:02]} 7... d6 {[%clk 0:02:53.4]} 8. c3 {[%clk 0:03:02.5]} 8...
b5 {[%clk 0:02:52.2]} 9. e5 {[%clk 0:02:50.7]} 9... Rb8 {[%clk 0:02:46.1]} 10.
exd6 {[%clk 0:02:41.5]} 10... Qxd6 {[%clk 0:02:45.7]} 11. Bf4 {[%clk 0:02:21.7]}
11... e5 {[%clk 0:02:45.4]} 12. Nxe5 {[%clk 0:02:21.9]} 12... Nxe5 {[%clk
0:02:45.5]} 13. d4 {[%clk 0:02:21.5]} 13... cxd4 {[%clk 0:02:32]} 14. cxd4
{[%clk 0:02:20.6]} 14... O-O {[%clk 0:02:07.5]} 15. Bxe5 {[%clk 0:02:19.2]}
15... Bxe5 {[%clk 0:02:04.6]} 16. dxe5 {[%clk 0:02:20.1]} 16... Qb4 {[%clk
0:01:57.2]} 17. Qd2 {[%clk 0:02:10.5]} 17... Qc5 {[%clk 0:01:37.4]} 18. Nc3
{[%clk 0:01:59.1]} 18... Bb7 {[%clk 0:01:37.4]} 19. Qd6 {[%clk 0:01:52.4]} 19...
Qxd6 {[%clk 0:01:36.3]} 20. exd6 {[%clk 0:01:53.3]} 20... Nf5 {[%clk 0:01:36.5]}
21. Rad1 {[%clk 0:01:44.5]} 21... Rfd8 {[%clk 0:01:32.9]} 22. d7 {[%clk
0:01:28.5]} 22... Bxg2 {[%clk 0:01:27.7]} 23. Kxg2 {[%clk 0:01:29.4]} 23... Kg7
{[%clk 0:01:19.4]} 24. g4 {[%clk 0:01:17]} 24... Nh4+ {[%clk 0:01:17.8]} 25. Kg3
{[%clk 0:01:17.4]} 25... g5 {[%clk 0:01:18.2]} 26. Ne4 {[%clk 0:01:17.2]} 26...
h6 {[%clk 0:01:15.1]} 27. b4 {[%clk 0:00:33.2]} 27... Ng6 {[%clk 0:01:12.4]} 28.
Nd6 {[%clk 0:00:32.1]} 28... Nf8 {[%clk 0:00:55.1]} 29. Re8 {[%clk 0:00:23.5]}
29... Nxd7 {[%clk 0:00:50.1]} 30. Rxd8 {[%clk 0:00:23.4]} 30... Rxd8 {[%clk
0:00:46.6]} 31. Nb7 {[%clk 0:00:23.8]} 31... Rc8 {[%clk 0:00:44.1]} 32. Rxd7
{[%clk 0:00:24]} 32... Rc3+ {[%clk 0:00:45]} 33. f3 {[%clk 0:00:23.5]} 33... Ra3
{[%clk 0:00:44.4]} 34. Nd6 {[%clk 0:00:22.7]} 34... Rxa2 {[%clk 0:00:42.3]} 35.
Nxf7 {[%clk 0:00:22.4]} 35... Ra4 {[%clk 0:00:39.1]} 36. Nd6+ {[%clk 0:00:19.6]}
36... Kf6 {[%clk 0:00:39.4]} 37. Nxb5 {[%clk 0:00:14.1]} 37... a6 {[%clk
0:00:39.5]} 38. Nc3 {[%clk 0:00:10.4]} 38... Rxb4 {[%clk 0:00:39.5]} 39. Nd5+
{[%clk 0:00:10.3]} 39... Ke6 {[%clk 0:00:39]} 40. Nxb4 {[%clk 0:00:11]} 40...
Kxd7 {[%clk 0:00:39.4]} 41. Nxa6 {[%clk 0:00:11.5]} 41... Ke6 {[%clk 0:00:39.4]}
42. Nb4 {[%clk 0:00:12]} 42... Kd6 {[%clk 0:00:40.3]} 43. Nc2 {[%clk 0:00:12]}
43... Ke5 {[%clk 0:00:41.2]} 44. Ne3 {[%clk 0:00:12.4]} 44... Kd4 {[%clk
0:00:42.1]} 45. Nf5+ {[%clk 0:00:12.7]} 45... Ke5 {[%clk 0:00:43]} 46. Nxh6
{[%clk 0:00:12.8]} 46... Kf6 {[%clk 0:00:43.9]} 47. Nf5 {[%clk 0:00:13.2]} 47...
Kg6 {[%clk 0:00:44.8]} 48. f4 {[%clk 0:00:13.5]} 48... Kf6 {[%clk 0:00:45.7]}
49. fxg5+ {[%clk 0:00:13.4]} 49... Kxg5 {[%clk 0:00:46.6]} 50. h4+ {[%clk
0:00:13.9]} 50... Kf6 {[%clk 0:00:47.5]} 51. Kf4 {[%clk 0:00:13.9]} 51... Kg6
{[%clk 0:00:48.4]} 52. h5+ {[%clk 0:00:14.2]} 52... Kh7 {[%clk 0:00:49.3]} 53.
g5 {[%clk 0:00:14.7]} 53... Kg8 {[%clk 0:00:49.5]} 54. g6 {[%clk 0:00:14.9]}
54... Kh8 {[%clk 0:00:50.4]} 55. Kg5 {[%clk 0:00:15.2]} 55... Kg8 {[%clk
0:00:51.3]} 56. h6 {[%clk 0:00:15.7]} 56... Kf8 {[%clk 0:00:52.2]} 57. Kf6
{[%clk 0:00:15.8]} 57... Kg8 {[%clk 0:00:53.1]} 58. Ne7+ {[%clk 0:00:13.9]}
58... Kf8 {[%clk 0:00:53.4]} 59. g7+ {[%clk 0:00:14.2]} 59... Ke8 {[%clk
0:00:54.3]} 60. g8=Q+ {[%clk 0:00:14.7]} 60... Kd7 {[%clk 0:00:55.2]} 61. Qc8+
{[%clk 0:00:14.5]} 61... Kd6 {[%clk 0:00:55.3]} 62. Qc6# {[%clk 0:00:14.7]} 1-0

[Event "Late-Titled-Tuesday-Blitz-January-16-2024"]
[Site "Chess.com"]
[Date "2024.01.16"]
[Round "1"]
[White "treadstone_71"]
[Black "HalfIsCrayfish"]
[Result "1/2-1/2"]
[WhiteElo "2276"]
[BlackElo "2607"]
[TimeControl "180+1"]
[EndTime "14:07:32 PST"]
[Termination "Game drawn by repetition"]

1. e4 {[%clk 0:02:59.7]} 1... c5 {[%clk 0:03:00.6]} 2. Nf3 {[%clk 0:02:59.1]}
2... Nc6 {[%clk 0:03:01.2]} 3. d4 {[%clk 0:02:59]} 3... cxd4 {[%clk 0:03:01.8]}
4. Nxd4 {[%clk 0:02:59.8]} 4... Nf6 {[%clk 0:03:02.3]} 5. Nc3 {[%clk 0:02:59.6]}
5... e5 {[%clk 0:03:03]} 6. Ndb5 {[%clk 0:02:59.7]} 6... d6 {[%clk 0:03:03.7]}
7. Bg5 {[%clk 0:02:59.8]} 7... a6 {[%clk 0:03:04]} 8. Na3 {[%clk 0:03:00]} 8...
b5 {[%clk 0:03:04.7]} 9. Bxf6 {[%clk 0:02:59.7]} 9... gxf6 {[%clk 0:03:04.7]}
10. Nd5 {[%clk 0:03:00.3]} 10... f5 {[%clk 0:03:05.4]} 11. c3 {[%clk 0:03:00.8]}
11... Bg7 {[%clk 0:03:04.5]} 12. exf5 {[%clk 0:03:00.4]} 12... Bxf5 {[%clk
0:03:04.5]} 13. Nc2 {[%clk 0:03:01]} 13... O-O {[%clk 0:03:04.4]} 14. Nce3
{[%clk 0:03:01.3]} 14... Be6 {[%clk 0:03:04.9]} 15. Bd3 {[%clk 0:03:01.7]} 15...
f5 {[%clk 0:02:40.5]} 16. O-O {[%clk 0:03:01.3]} 16... Ne7 {[%clk 0:02:25.5]}
17. Nxe7+ {[%clk 0:02:56.9]} 17... Qxe7 {[%clk 0:02:25.3]} 18. Bxf5 {[%clk
0:02:57.2]} 18... Kh8 {[%clk 0:02:02.5]} 19. Bxe6 {[%clk 0:02:54.2]} 19... Qxe6
{[%clk 0:02:03.4]} 20. Qd5 {[%clk 0:02:53.5]} 20... Qg6 {[%clk 0:02:03.5]} 21.
Rad1 {[%clk 0:02:49]} 21... Rad8 {[%clk 0:02:03.7]} 22. g3 {[%clk 0:02:39]}
22... Bh6 {[%clk 0:02:03.2]} 23. Qd3 {[%clk 0:02:34.6]} 23... Qh5 {[%clk
0:01:38.9]} 24. Qe4 {[%clk 0:02:19.6]} 24... Qe2 {[%clk 0:01:17.6]} 25. Qg4
{[%clk 0:01:50.7]} 25... Qxb2 {[%clk 0:00:45.9]} 26. Nf5 {[%clk 0:01:49.6]}
26... Rf6 {[%clk 0:00:46.5]} 27. Nxh6 {[%clk 0:01:48]} 27... Rdf8 {[%clk
0:00:34.6]} 28. Qh3 {[%clk 0:00:54.7]} 28... Rxf2 {[%clk 0:00:31.3]} 29. Ng4
{[%clk 0:00:54.6]} 29... R2f3 {[%clk 0:00:02.5]} 30. Rxf3 {[%clk 0:00:50.6]}
30... Rxf3 {[%clk 0:00:03.4]} 31. Rf1 {[%clk 0:00:51]} 31... Qe2 {[%clk
0:00:02.9]} 32. Rxf3 {[%clk 0:00:44.4]} 32... Qxf3 {[%clk 0:00:03.8]} 33. Nf2
{[%clk 0:00:45]} 33... Qxc3 {[%clk 0:00:04.1]} 34. Qe6 {[%clk 0:00:40.5]} 34...
Qc1+ {[%clk 0:00:04.7]} 35. Kg2 {[%clk 0:00:40.2]} 35... Qc6+ {[%clk 0:00:05.5]}
36. Kg1 {[%clk 0:00:39.5]} 36... Kg7 {[%clk 0:00:05.9]} 37. Qe7+ {[%clk
0:00:39.7]} 37... Kg8 {[%clk 0:00:06.1]} 38. Qe6+ {[%clk 0:00:39.2]} 38... Kg7
{[%clk 0:00:06.7]} 39. Ng4 {[%clk 0:00:39.9]} 39... Qc1+ {[%clk 0:00:06.7]} 40.
Kg2 {[%clk 0:00:40.2]} 40... Qd2+ {[%clk 0:00:05.5]} 41. Kh3 {[%clk 0:00:40.5]}
41... Qg5 {[%clk 0:00:05.9]} 42. Qxd6 {[%clk 0:00:36.3]} 42... Qh5+ {[%clk
0:00:05.9]} 43. Kg2 {[%clk 0:00:36.9]} 43... Qxg4 {[%clk 0:00:06.4]} 44. Qxe5+
{[%clk 0:00:37.6]} 44... Kg8 {[%clk 0:00:04]} 45. Qd5+ {[%clk 0:00:36.4]} 45...
Kg7 {[%clk 0:00:03.6]} 46. Qb7+ {[%clk 0:00:36.6]} 46... Kg8 {[%clk 0:00:04.1]}
47. Qxa6 {[%clk 0:00:36.3]} 47... Qe2+ {[%clk 0:00:04.6]} 48. Kh3 {[%clk
0:00:36.8]} 48... Qh5+ {[%clk 0:00:04.9]} 49. Kg2 {[%clk 0:00:37.3]} 49... Qe2+
{[%clk 0:00:05.5]} 50. Kh3 {[%clk 0:00:37.9]} 50... Qh5+ {[%clk 0:00:06.1]} 51.
Kg2 {[%clk 0:00:38.3]} 51... Qd5+ {[%clk 0:00:06.9]} 52. Kh3 {[%clk 0:00:37.5]}
52... Qf5+ {[%clk 0:00:07.3]} 53. Kg2 {[%clk 0:00:37.7]} 53... Qe4+ {[%clk
0:00:07.9]} 54. Kh3 {[%clk 0:00:38.2]} 54... Qd3 {[%clk 0:00:07.1]} 55. Qe6+
{[%clk 0:00:35.9]} 55... Kf8 {[%clk 0:00:06.9]} 56. Qf6+ {[%clk 0:00:35.8]}
56... Kg8 {[%clk 0:00:07.3]} 57. Qe6+ {[%clk 0:00:36.1]} 57... Kf8 {[%clk
0:00:07.9]} 58. Qf6+ {[%clk 0:00:36.6]} 58... Kg8 {[%clk 0:00:08.2]} 59. Qe6+
{[%clk 0:00:37.1]} 1/2-1/2

[Event "Late-Titled-Tuesday-Blitz-January-16-2024"]
[Site "Chess.com"]
[Date "2024.01.16"]
[Round "1"]
[White "Navyblue1"]
[Black "HaryKane"]
[Result "0-1"]
[WhiteElo "2183"]
[BlackElo "2572"]
[TimeControl "180+1"]
[EndTime "14:07:33 PST"]
[Termination "HaryKane won on time"]

1. d4 {[%clk 0:03:00.9]} 1... e6 {[%clk 0:02:55.9]} 2. c4 {[%clk 0:02:59.2]}
2... d5 {[%clk 0:02:53.8]} 3. Nf3 {[%clk 0:02:58]} 3... f5 {[%clk 0:02:53.8]} 4.
Nc3 {[%clk 0:02:51.7]} 4... Nf6 {[%clk 0:02:54.2]} 5. cxd5 {[%clk 0:02:24.7]}
5... exd5 {[%clk 0:02:54]} 6. g3 {[%clk 0:02:23.2]} 6... c6 {[%clk 0:02:54.1]}
7. Bg2 {[%clk 0:02:22.6]} 7... Bd6 {[%clk 0:02:54.8]} 8. O-O {[%clk 0:02:22.2]}
8... O-O {[%clk 0:02:55]} 9. Qc2 {[%clk 0:02:07.9]} 9... Ne4 {[%clk 0:02:54.6]}
10. Nd2 {[%clk 0:01:42.4]} 10... Qf6 {[%clk 0:02:50.5]} 11. e3 {[%clk
0:01:39.4]} 11... Re8 {[%clk 0:02:38.6]} 12. Ndxe4 {[%clk 0:01:17.8]} 12... fxe4
{[%clk 0:02:37.2]} 13. f3 {[%clk 0:01:17.5]} 13... exf3 {[%clk 0:02:38.1]} 14.
Rxf3 {[%clk 0:01:16.6]} 14... Qe7 {[%clk 0:02:37.8]} 15. Bd2 {[%clk 0:01:11.7]}
15... Bg4 {[%clk 0:02:35.6]} 16. Rf2 {[%clk 0:01:10.4]} 16... Nd7 {[%clk
0:02:34.1]} 17. Qb3 {[%clk 0:00:41.5]} 17... Nb6 {[%clk 0:02:28.2]} 18. e4
{[%clk 0:00:36.3]} 18... Kh8 {[%clk 0:02:08]} 19. exd5 {[%clk 0:00:23.5]} 19...
cxd5 {[%clk 0:02:08]} 20. Nxd5 {[%clk 0:00:20.6]} 20... Nxd5 {[%clk 0:02:07.8]}
21. Qxd5 {[%clk 0:00:21]} 21... Qd8 {[%clk 0:01:22.4]} 22. Qxb7 {[%clk
0:00:19.9]} 22... Rb8 {[%clk 0:01:22.5]} 23. Qd5 {[%clk 0:00:18.2]} 23... Be6
{[%clk 0:01:11.8]} 24. Qf3 {[%clk 0:00:16.3]} 24... Rxb2 {[%clk 0:01:04.2]} 25.
d5 {[%clk 0:00:16.2]} 25... Bg8 {[%clk 0:00:53.5]} 26. Qc3 {[%clk 0:00:15.2]}
26... Be5 {[%clk 0:00:49.6]} 27. Qc4 {[%clk 0:00:14.1]} 27... Rxd2 {[%clk
0:00:46.9]} 28. Rxd2 {[%clk 0:00:13.9]} 28... Bxa1 {[%clk 0:00:44.3]} 29. h3
{[%clk 0:00:14.2]} 29... Be5 {[%clk 0:00:42.6]} 30. Kh2 {[%clk 0:00:14]} 30...
Qd6 {[%clk 0:00:42.1]} 31. Qd3 {[%clk 0:00:14.1]} 31... Rc8 {[%clk 0:00:37.6]}
32. a4 {[%clk 0:00:13.6]} 32... Rc3 {[%clk 0:00:36.7]} 33. Qe4 {[%clk
0:00:13.4]} 33... Rxg3 {[%clk 0:00:34.9]} 34. Kh1 {[%clk 0:00:12.7]} 34... Rc3
{[%clk 0:00:30.3]} 35. Rd1 {[%clk 0:00:12.8]} 35... Bf6 {[%clk 0:00:24.6]} 36.
Re1 {[%clk 0:00:11.8]} 36... h6 {[%clk 0:00:23.8]} 37. Qe8 {[%clk 0:00:10.1]}
37... Rg3 {[%clk 0:00:18.8]} 38. Qc6 {[%clk 0:00:09.5]} 38... Qf4 {[%clk
0:00:12.1]} 39. d6 {[%clk 0:00:06.2]} 39... Qf2 {[%clk 0:00:12.3]} 40. Rg1
{[%clk 0:00:05.6]} 40... Bd4 {[%clk 0:00:11.3]} 41. Qc1 {[%clk 0:00:02.9]} 41...
Be5 {[%clk 0:00:08.9]} 42. Qf1 {[%clk 0:00:01.7]} 42... Rxh3+ {[%clk 0:00:08.7]}
0-1